bitfinex-derivatives/quotes_BTCF0:USTF0_20230101
["timestamp","ask_amount","ask_price","bid_price","bid_amount"]
[1672613928743,2.97044017,16617.0,16616.0,0.03787096]
[1672613928949,2.97044017,16617.0,16616.0,0.33857096]
[1672613929374,2.97044017,16617.0,16616.0,0.03787096]
[1672613929582,2.97044017,16617.0,16616.0,0.33857096]
[1672613931694,2.97044017,16617.0,16616.0,0.03787096]
[1672613931905,2.97044017,16617.0,16616.0,0.33857096]
[1672613935798,2.97044017,16617.0,16616.0,0.03787096]
[1672613936004,2.97044017,16617.0,16616.0,0.33857096]
[1672613937062,2.97044017,16617.0,16616.0,0.03787096]
[1672613937267,2.97044017,16617.0,16616.0,0.33857096]
[1672613940946,2.97044017,16617.0,16616.0,0.33841617]
[1672613967555,4.86158383,16616.0,16615.0,0.3007]
[1672613967866,6.01658383,16616.0,16615.0,0.3007]
[1672613969442,6.03258383,16616.0,16615.0,0.3037]
[1672613977956,6.01658383,16616.0,16615.0,0.3007]
[1672613978169,6.01758383,16616.0,16615.0,0.4307]
[1672614015375,6.01758383,16616.0,16615.0,0.13]
[1672614015586,6.01758383,16616.0,16615.0,0.4307]
[1672614018101,6.01758383,16616.0,16615.0,0.13]
[1672614018416,6.01758383,16616.0,16615.0,0.4307]
[1672614020212,6.01758383,16616.0,16615.0,0.13]
[1672614020414,6.01758383,16616.0,16615.0,0.4307]
[1672614020945,6.01758383,16616.0,16615.0,0.43054775]
[1672614024407,6.01758383,16616.0,16615.0,0.12984775]
[1672614024621,6.01758383,16616.0,16615.0,0.43054775]
[1672614030077,6.01758383,16616.0,16615.0,0.12984775]
[1672614030397,6.01758383,16616.0,16615.0,0.43054775]
[1672614036905,6.01758383,16616.0,16615.0,0.12984775]
[1672614037115,6.01758383,16616.0,16615.0,0.43054775]
[1672614043647,5.11338383,16616.0,16615.0,0.43054775]
[1672614044696,5.11338383,16616.0,16615.0,0.12984775]
[1672614044905,5.11338383,16616.0,16615.0,0.43054775]
[1672614046377,5.11338383,16616.0,16615.0,0.12984775]
[1672614046584,5.11338383,16616.0,16615.0,0.43054775]
[1672614048381,6.01758383,16616.0,16615.0,0.43054775]
[1672614050164,6.01758383,16616.0,16615.0,0.12984775]
[1672614050797,6.01758383,16616.0,16615.0,0.43054775]
[1672614058356,6.01758383,16616.0,16615.0,0.12984775]
[1672614058778,6.01758383,16616.0,16615.0,0.43054775]
[1672614063735,5.11258383,16616.0,16615.0,0.43054775]
[1672614065517,5.11258383,16616.0,16615.0,0.12984775]
[1672614065727,5.11258383,16616.0,16615.0,0.43054775]
[1672614066880,5.11258383,16616.0,16615.0,0.12984775]
[1672614067086,5.11258383,16616.0,16615.0,0.43054775]
[1672614067297,5.11258383,16616.0,16615.0,0.12984775]
[1672614067504,5.11258383,16616.0,16615.0,0.43054775]
[1672614068981,5.11258383,16616.0,16615.0,0.12984775]
[1672614069190,5.11258383,16616.0,16615.0,0.43054775]
[1672614073612,5.11258383,16616.0,16615.0,0.12984775]
[1672614073819,5.11318383,16616.0,16615.0,0.43054775]
[1672614074030,5.11318383,16616.0,16615.0,0.12984775]
[1672614074241,5.11318383,16616.0,16615.0,0.43054775]
[1672614075192,5.11318383,16616.0,16615.0,0.43036875]
[1672614076449,5.11318383,16616.0,16615.0,0.12966875]
[1672614076655,5.11318383,16616.0,16615.0,0.43036875]
[1672614078344,5.11318383,16616.0,16615.0,0.12966875]
[1672614078552,5.11318383,16616.0,16615.0,0.43036875]
[1672614080758,5.11318383,16616.0,16615.0,0.12966875]
[1672614080975,5.11318383,16616.0,16615.0,0.43036875]
[1672614083713,5.11318383,16616.0,16615.0,0.12966875]
[1672614084027,5.11318383,16616.0,16615.0,0.43036875]
[1672614086446,5.11318383,16616.0,16615.0,0.12966875]
[1672614086860,5.11318383,16616.0,16615.0,0.43036875]
[1672614087284,5.11318383,16616.0,16615.0,0.12966875]
[1672614087494,5.11318383,16616.0,16615.0,0.43036875]
[1672614089073,5.11318383,16616.0,16615.0,0.12966875]
[1672614089284,5.11318383,16616.0,16615.0,0.43036875]
[1672614091387,5.11318383,16616.0,16615.0,0.12966875]
[1672614091700,5.11318383,16616.0,16615.0,0.43036875]
[1672614091916,5.11318383,16616.0,16615.0,0.12966875]
[1672614092121,5.11318383,16616.0,16615.0,0.43036875]
[1672614096436,5.11318383,16616.0,16615.0,0.12966875]
[1672614096646,5.11318383,16616.0,16615.0,0.43036875]
[1672614097904,5.11318383,16616.0,16615.0,0.12966875]
[1672614098114,5.11318383,16616.0,16615.0,0.43036875]
[1672614100227,5.11318383,16616.0,16615.0,0.12966875]
[1672614100855,5.11318383,16616.0,16615.0,0.43036875]
[1672614101491,5.11318383,16616.0,16615.0,0.12966875]
[1672614101694,5.11318383,16616.0,16615.0,0.43036875]
[1672614103480,5.11318383,16616.0,16615.0,0.12966875]
[1672614104119,5.11318383,16616.0,16615.0,0.43036875]
[1672614104319,5.11318383,16616.0,16615.0,0.12966875]
[1672614104537,5.11318383,16616.0,16615.0,0.43036875]
[1672614111044,5.11318383,16616.0,16615.0,0.12966875]
[1672614111255,5.11318383,16616.0,16615.0,0.43036875]
[1672614112943,5.11318383,16616.0,16615.0,0.12966875]
[1672614113152,5.11318383,16616.0,16615.0,0.43036875]
[1672614117044,5.11318383,16616.0,16615.0,0.12966875]
[1672614117251,5.11318383,16616.0,16615.0,0.43036875]
[1672614119366,5.11318383,16616.0,16615.0,0.12966875]
[1672614119571,5.11318383,16616.0,16615.0,0.43036875]
[1672614120932,5.11318383,16616.0,16615.0,0.12966875]
[1672614121147,5.11318383,16616.0,16615.0,0.43036875]
[1672614125446,5.11318383,16616.0,16615.0,0.12966875]
[1672614125876,5.11318383,16616.0,16615.0,0.43036875]
[1672614126081,5.11318383,16616.0,16615.0,0.12966875]
[1672614126292,5.11318383,16616.0,16615.0,0.43036875]
[1672614128076,5.11318383,16616.0,16615.0,0.43016804]
[1672614131554,5.11318383,16616.0,16615.0,0.12946804]
[1672614131763,5.11318383,16616.0,16615.0,0.43016804]
[1672614132916,5.11318383,16616.0,16615.0,0.12946804]
[1672614133129,5.11318383,16616.0,16615.0,0.43016804]
[1672614133659,5.11318383,16616.0,16615.0,0.12946804]
[1672614134493,5.11318383,16616.0,16615.0,0.43016804]
[1672614137971,5.11318383,16616.0,16615.0,0.12946804]
[1672614138377,5.11318383,16616.0,16615.0,0.43016804]
[1672614138588,5.11318383,16616.0,16615.0,0.12946804]
[1672614139123,5.11318383,16616.0,16615.0,0.43016804]
[1672614141962,5.11318383,16616.0,16615.0,0.12946804]
[1672614142175,5.11318383,16616.0,16615.0,0.43016804]
[1672614143650,5.11318383,16616.0,16615.0,0.12946804]
[1672614144277,5.11318383,16616.0,16615.0,0.43016804]
[1672614144493,5.11318383,16616.0,16615.0,0.12946804]
[1672614145015,5.11318383,16616.0,16615.0,0.43016804]
[1672614145438,5.11318383,16616.0,16615.0,0.12946804]
[1672614145746,5.11318383,16616.0,16615.0,0.43016804]
[1672614148798,5.811924,16616.0,16615.0,0.43016804]
[1672614149329,5.811924,16616.0,16615.0,0.12946804]
[1672614149530,5.811924,16616.0,16615.0,0.43016804]
[1672614156693,5.811924,16616.0,16615.0,0.12946804]
[1672614156904,5.811924,16616.0,16615.0,0.43016804]
[1672614157840,5.811924,16616.0,16615.0,0.12946804]
[1672614158048,5.811924,16616.0,16615.0,0.43016804]
[1672614158683,5.811924,16616.0,16615.0,0.12946804]
[1672614159096,5.811924,16616.0,16615.0,0.43016804]
[1672614159532,5.811924,16616.0,16615.0,0.12946804]
[1672614159743,5.811924,16616.0,16615.0,0.43016804]
[1672614160259,5.811924,16616.0,16615.0,0.12946804]
[1672614161103,5.811924,16616.0,16615.0,0.43016804]
[1672614163418,5.811924,16616.0,16615.0,0.12946804]
[1672614163637,5.811924,16616.0,16615.0,0.43016804]
[1672614164369,5.811924,16616.0,16615.0,0.12946804]
[1672614164682,5.811924,16616.0,16615.0,0.43016804]
[1672614164992,5.811924,16616.0,16615.0,0.12946804]
[1672614165211,5.811924,16616.0,16615.0,0.43016804]
[1672614166988,5.8116976,16616.0,16615.0,0.43016804]
[1672614169834,5.8116976,16616.0,16615.0,0.12946804]
[1672614170254,5.8116976,16616.0,16615.0,0.43016804]
[1672614170464,5.8116976,16616.0,16615.0,0.12946804]
[1672614170880,5.8116976,16616.0,16615.0,0.43016804]
[1672614171085,5.8116976,16616.0,16615.0,0.12946804]
[1672614171297,5.8116976,16616.0,16615.0,0.43016804]
[1672614171927,5.8116976,16616.0,16615.0,0.12946804]
[1672614172138,5.8116976,16616.0,16615.0,0.43016804]
[1672614173518,5.8116976,16616.0,16615.0,0.12946804]
[1672614173927,5.8116976,16616.0,16615.0,0.43016804]
[1672614174881,5.8116976,16616.0,16615.0,0.12946804]
[1672614175092,5.8116976,16616.0,16615.0,0.43016804]
[1672614175614,5.8116976,16616.0,16615.0,0.12946804]
[1672614175936,5.8116976,16616.0,16615.0,0.43016804]
[1672614178348,5.8116976,16616.0,16615.0,0.12946804]
[1672614178762,5.8116976,16616.0,16615.0,0.43016804]
[1672614183811,5.8125976,16616.0,16615.0,0.43016804]
[1672614185483,5.8125976,16616.0,16615.0,0.12946804]
[1672614185696,5.8125976,16616.0,16615.0,0.43016804]
[1672614186530,5.8125976,16616.0,16615.0,0.12946804]
[1672614186746,5.8125976,16616.0,16615.0,0.43016804]
[1672614194211,5.8125976,16616.0,16615.0,0.12946804]
[1672614194420,5.8125976,16616.0,16615.0,0.43016804]
[1672614198623,5.8125976,16616.0,16615.0,0.12946804]
[1672614199260,5.8125976,16616.0,16615.0,0.43016804]
[1672614203772,5.8129976,16616.0,16615.0,0.43016804]
[1672614209755,5.8129976,16616.0,16615.0,0.12946804]
[1672614209977,5.8129976,16616.0,16615.0,0.43016804]
[1672614212807,5.8129976,16616.0,16615.0,0.12946804]
[1672614213122,5.8129976,16616.0,16615.0,0.43016804]
[1672614213446,5.8129976,16616.0,16615.0,0.12946804]
[1672614213658,5.8129976,16616.0,16615.0,0.43016804]
[1672614213864,6.7171976,16616.0,16615.0,0.43016804]
[1672614216066,6.7171976,16616.0,16615.0,0.12946804]
[1672614216385,6.7171976,16616.0,16615.0,0.43016804]
[1672614219011,6.7171976,16616.0,16615.0,0.42994166]
[1672614223007,6.7171976,16616.0,16615.0,0.12924166]
[1672614223220,6.7171976,16616.0,16615.0,0.42994166]
[1672614223423,6.7171976,16616.0,16615.0,0.12924166]
[1672614223633,6.7171976,16616.0,16615.0,0.42994166]
[1672614224691,6.7171976,16616.0,16615.0,0.12924166]
[1672614224895,6.7171976,16616.0,16615.0,0.42994166]
[1672614225316,6.7171976,16616.0,16615.0,0.12924166]
[1672614225524,6.7171976,16616.0,16615.0,0.42994166]
[1672614226061,6.7171976,16616.0,16615.0,0.12924166]
[1672614226266,6.7171976,16616.0,16615.0,0.42994166]
[1672614226679,6.7171976,16616.0,16615.0,0.12924166]
[1672614226889,6.7171976,16616.0,16615.0,0.42994166]
[1672614228047,6.7171976,16616.0,16615.0,0.12924166]
[1672614228259,6.7171976,16616.0,16615.0,0.42994166]
[1672614229423,6.7171976,16616.0,16615.0,0.12924166]
[1672614229632,6.7171976,16616.0,16615.0,0.42994166]
[1672614231108,6.7171976,16616.0,16615.0,0.12924166]
[1672614231317,6.7171976,16616.0,16615.0,0.42994166]
[1672614233100,6.7171976,16616.0,16615.0,0.12924166]
[1672614233309,6.7171976,16616.0,16615.0,0.42994166]
[1672614236780,6.7171976,16616.0,16615.0,0.12924166]
[1672614236996,6.7171976,16616.0,16615.0,0.42994166]
[1672614237208,6.7171976,16616.0,16615.0,0.12924166]
[1672614237408,6.7171976,16616.0,16615.0,0.42994166]
[1672614239407,6.7171976,16616.0,16615.0,0.12924166]
[1672614240029,6.7171976,16616.0,16615.0,0.42994166]
[1672614243090,6.7171976,16616.0,16615.0,0.12924166]
[1672614243406,6.7171976,16616.0,16615.0,0.42994166]
[1672614244559,6.7171976,16616.0,16615.0,0.12924166]
[1672614244776,6.7171976,16616.0,16615.0,0.42994166]
[1672614245515,6.7171976,16616.0,16615.0,0.12924166]
[1672614245725,6.7171976,16616.0,16615.0,0.42994166]
[1672614250759,6.7171976,16616.0,16615.0,0.12924166]
[1672614250972,6.7171976,16616.0,16615.0,0.42994166]
[1672614253605,6.7171976,16616.0,16615.0,0.12924166]
[1672614253804,6.7171976,16616.0,16615.0,0.42994166]
[1672614256130,6.7171976,16616.0,16615.0,0.12924166]
[1672614256552,6.7171976,16616.0,16615.0,0.42994166]
[1672614259186,6.7171976,16616.0,16615.0,0.12924166]
[1672614259396,6.7171976,16616.0,16615.0,0.42994166]
[1672614268333,6.7171976,16616.0,16615.0,0.42976907]
[1672614279361,6.7171976,16616.0,16615.0,0.12906907]
[1672614279678,6.7171976,16616.0,16615.0,0.42976907]
[1672614283459,6.7171976,16616.0,16615.0,0.12906907]
[1672614283776,6.7175976,16616.0,16615.0,0.42976907]
[1672614299113,6.7175976,16616.0,16615.0,0.12906907]
[1672614299320,6.7175976,16616.0,16615.0,0.42976907]
[1672614302155,6.01885743,16616.0,16615.0,0.42976907]
[1672614302371,6.7175976,16616.0,16615.0,0.42976907]
[1672614303737,7.6217976,16616.0,16615.0,0.42976907]
[1672614320239,7.6217976,16616.0,16615.0,0.12906907]
[1672614320863,7.6217976,16616.0,16615.0,0.12897343]
[1672614321068,7.6217976,16616.0,16615.0,0.42967343]
[1672614323828,6.7175976,16616.0,16615.0,0.42967343]
[1672614324660,6.7175976,16616.0,16615.0,0.12897343]
[1672614325186,6.7175976,16616.0,16615.0,0.42967343]
[1672614325918,6.7175976,16616.0,16615.0,0.12897343]
[1672614326340,6.7175976,16616.0,16615.0,0.42967343]
[1672614331071,6.01885743,16616.0,16615.0,0.42967343]
[1672614338849,6.01885743,16616.0,16615.0,0.12897343]
[1672614339062,6.01885743,16616.0,16615.0,0.42967343]
[1672614344633,6.01885743,16616.0,16615.0,0.12897343]
[1672614344846,6.01885743,16616.0,16615.0,0.42967343]
[1672614345470,6.01885743,16616.0,16615.0,0.12897343]
[1672614345688,6.01885743,16616.0,16615.0,0.42967343]
[1672614346845,6.01885743,16616.0,16615.0,0.12897343]
[1672614347055,6.01885743,16616.0,16615.0,0.42967343]
[1672614349049,5.26295743,16616.0,16615.0,0.42967343]
[1672614349264,6.01765743,16616.0,16615.0,0.12897343]
[1672614349471,6.01765743,16616.0,16615.0,0.42967343]
[1672614350093,6.01765743,16616.0,16615.0,0.12897343]
[1672614350421,6.01765743,16616.0,16615.0,0.42967343]
[1672614364917,6.01765743,16616.0,16615.0,0.12897343]
[1672614365127,6.01765743,16616.0,16615.0,0.42967343]
[1672614365660,6.01765743,16616.0,16615.0,0.12897343]
[1672614365871,6.01765743,16616.0,16615.0,0.42967343]
[1672614367446,6.01765743,16616.0,16615.0,0.12897343]
[1672614367649,6.01765743,16616.0,16615.0,0.42967343]
[1672614370806,6.01765743,16616.0,16615.0,0.42958469]
[1672614373541,6.01765743,16616.0,16615.0,0.12888469]
[1672614373742,6.01765743,16616.0,16615.0,0.42958469]
[1672614374582,6.01765743,16616.0,16615.0,0.12888469]
[1672614374793,6.01765743,16616.0,16615.0,0.42958469]
[1672614384881,6.01765743,16616.0,16615.0,0.12888469]
[1672614385098,6.01765743,16616.0,16615.0,0.42958469]
[1672614388260,6.01765743,16616.0,16615.0,0.12888469]
[1672614388467,6.01765743,16616.0,16615.0,0.42958469]
[1672614390144,6.01765743,16616.0,16615.0,0.12888469]
[1672614390363,6.01765743,16616.0,16615.0,0.42958469]
[1672614390566,6.01765743,16616.0,16615.0,0.12888469]
[1672614390881,6.01765743,16616.0,16615.0,0.42958469]
[1672614391086,6.01765743,16616.0,16615.0,0.12888469]
[1672614391620,6.01765743,16616.0,16615.0,0.42958469]
[1672614391834,6.01765743,16616.0,16615.0,0.12888469]
[1672614392040,6.01765743,16616.0,16615.0,0.42958469]
[1672614395720,6.01765743,16616.0,16615.0,0.12888469]
[1672614395932,6.01765743,16616.0,16615.0,0.42958469]
[1672614396867,6.01765743,16616.0,16615.0,0.12888469]
[1672614397083,6.01765743,16616.0,16615.0,0.42958469]
[1672614402440,6.01765743,16616.0,16615.0,0.12888469]
[1672614402650,6.01765743,16616.0,16615.0,0.42958469]
[1672614405068,6.01765743,16616.0,16615.0,0.12888469]
[1672614405272,6.01765743,16616.0,16615.0,0.42958469]
[1672614418727,6.01765743,16616.0,16615.0,0.12888469]
[1672614419044,6.01765743,16616.0,16615.0,0.42958469]
[1672614419876,6.01765743,16616.0,16615.0,0.12888469]
[1672614420087,6.01765743,16616.0,16615.0,0.42958469]
[1672614425454,6.01765743,16616.0,16615.0,0.42948109]
[1672614432605,6.01805743,16616.0,16615.0,0.42948109]
[1672614434707,6.01805743,16616.0,16615.0,0.12878109]
[1672614434919,6.01805743,16616.0,16615.0,0.42948109]
[1672614443639,6.01805743,16616.0,16615.0,0.12878109]
[1672614443854,6.01805743,16616.0,16615.0,0.42948109]
[1672614444908,6.01805743,16616.0,16615.0,0.12878109]
[1672614445228,6.01805743,16616.0,16615.0,0.42948109]
[1672614446903,6.01805743,16616.0,16615.0,0.12878109]
[1672614447116,6.01805743,16616.0,16615.0,0.42948109]
[1672614448274,6.01805743,16616.0,16615.0,0.12878109]
[1672614448593,6.01805743,16616.0,16615.0,0.42948109]
[1672614451636,6.01805743,16616.0,16615.0,0.12878109]
[1672614451856,6.01805743,16616.0,16615.0,0.42948109]
[1672614458696,6.01805743,16616.0,16615.0,0.12878109]
[1672614459014,6.01805743,16616.0,16615.0,0.42948109]
[1672614459843,6.01805743,16616.0,16615.0,0.12878109]
[1672614460062,6.01805743,16616.0,16615.0,0.42948109]
[1672614466156,6.92225743,16616.0,16615.0,0.42948109]
[1672614468259,5.11295743,16616.0,16615.0,0.42948109]
[1672614468462,4.81305743,16616.0,16615.0,0.42948109]
[1672614468678,4.79225743,16616.0,16615.0,0.42948109]
[1672614468880,4.23555004,16616.0,16615.0,0.42948109]
[1672614469095,2.38030781,16616.0,16615.0,1.03158109]
[1672614469309,2.38030781,16616.0,16615.0,1.12191703]
[1672614469310,1.93870781,16616.0,16615.0,1.12191703]
[1672614469522,1.75900781,16616.0,16615.0,1.57301703]
[1672614469733,1.75690781,16616.0,16615.0,1.57301703]
[1672614469942,1.75330781,16616.0,16615.0,1.70858921]
[1672614470151,1.75130781,16616.0,16615.0,1.72180812]
[1672614470362,1.65370781,16616.0,16615.0,1.4959]
[1672614470580,1.65030781,16616.0,16615.0,1.4959]
[1672614470785,1.54963139,16616.0,16615.0,1.4959]
[1672614470996,1.53673139,16616.0,16615.0,1.4959]
[1672614471407,1.53673139,16616.0,16615.0,1.4939]
[1672614478772,1.50694139,16616.0,16615.0,1.4939]
[1672614479618,1.17660139,16616.0,16615.0,1.4939]
[1672614479827,1.14699139,16616.0,16615.0,2.3988]
[1672614480035,1.11635939,16616.0,16615.0,2.3988]
[1672614480564,1.08623939,16616.0,16615.0,2.3988]
[1672614482673,1.05569939,16616.0,16615.0,2.3988]
[1672614482886,1.00243701,16616.0,16615.0,3.39293594]
[1672614483084,0.97052832,16616.0,16615.0,3.39293594]
[1672614483294,0.66982832,16616.0,16615.0,3.52850812]
[1672614483616,0.66982832,16616.0,16615.0,3.5277816]
[1672614484043,0.66982832,16616.0,16615.0,3.43817218]
[1672614484249,0.66982832,16616.0,16615.0,3.52777269]
[1672614484463,0.66982832,16616.0,16615.0,3.52677251]
[1672614484664,0.66982832,16616.0,16615.0,3.43717218]
[1672614485616,0.66982832,16616.0,16615.0,3.29817218]
[1672614485831,0.66982832,16616.0,16615.0,3.43717218]
[1672614487193,0.66982832,16616.0,16615.0,3.61795172]
[1672614487403,0.66982832,16616.0,16615.0,3.43717218]
[1672614487818,0.66982832,16616.0,16615.0,1.58240852]
[1672614488030,0.66982832,16616.0,16615.0,1.4929]
[1672614490353,0.63975832,16616.0,16615.0,1.4929]
[1672614492129,0.60977832,16616.0,16615.0,1.4929]
[1672614492874,0.60977832,16616.0,16615.0,1.58240852]
[1672614493815,0.57949832,16616.0,16615.0,1.58240852]
[1672614494027,0.54921832,16616.0,16615.0,1.58240852]
[1672614498123,0.48939832,16616.0,16615.0,1.43220852]
[1672614498324,0.48939832,16616.0,16615.0,1.5677807]
[1672614499276,0.48939832,16616.0,16615.0,1.47827218]
[1672614499485,0.48939832,16616.0,16615.0,1.56783093]
[1672614500228,0.48939832,16616.0,16615.0,1.47827218]
[1672614501800,0.48939832,16616.0,16615.0,1.33927218]
[1672614502118,0.45900681,16616.0,16615.0,1.47827218]
[1672614502433,0.45900681,16616.0,16615.0,2.1569877]
[1672614502845,0.45900681,16616.0,16615.0,2.15590159]
[1672614503266,0.45900681,16616.0,16615.0,2.02141552]
[1672614503476,0.45900681,16616.0,16615.0,2.15590141]
[1672614504220,0.45900681,16616.0,16615.0,2.02141809]
[1672614506213,0.45900681,16616.0,16615.0,2.06648485]
[1672614507163,0.45900681,16616.0,16615.0,1.76578485]
[1672614507363,0.45900681,16616.0,16615.0,2.06648485]
[1672614508314,0.45900681,16616.0,16615.0,1.84063855]
[1672614508523,0.45900681,16616.0,16615.0,2.11181706]
[1672614510308,0.45900681,16616.0,16615.0,1.81111706]
[1672614510627,0.45900681,16616.0,16615.0,2.11181706]
[1672614511574,0.42818681,16616.0,16615.0,2.11181706]
[1672614512823,0.40447528,16616.0,16615.0,2.11181706]
[1672614514195,0.40447528,16616.0,16615.0,1.84063855]
[1672614515988,0.37483528,16616.0,16615.0,1.84063855]
[1672614520927,0.37483528,16616.0,16615.0,1.53993855]
[1672614521133,0.37483528,16616.0,16615.0,1.84063855]
[1672614523344,0.37483528,16616.0,16615.0,2.06589377]
[1672614524812,0.37483528,16616.0,16615.0,1.87015937]
[1672614525335,0.37483528,16616.0,16615.0,2.00536603]
[1672614525545,0.37483528,16616.0,16615.0,1.50742748]
[1672614527124,0.52543528,16616.0,16615.0,1.2671583]
[1672614527339,0.82543528,16616.0,16615.0,0.57490666]
[1672614527549,0.97553528,16616.0,16615.0,0.4397]
[1672614528490,1.12503528,16616.0,16615.0,0.4397]
[1672614534275,1.12503528,16616.0,16615.0,0.139]
[1672614534481,1.12503528,16616.0,16615.0,0.4397]
[1672614536163,1.12503528,16616.0,16615.0,0.139]
[1672614536371,1.12503528,16616.0,16615.0,0.4397]
[1672614537009,0.82503528,16616.0,16615.0,0.4397]
[1672614537739,0.67443528,16616.0,16615.0,0.4397]
[1672614543522,0.52493528,16616.0,16615.0,0.4397]
[1672614544574,0.52493528,16616.0,16615.0,0.3007]
[1672614544786,0.52493528,16616.0,16615.0,0.4397]
[1672614549625,0.52493528,16616.0,16615.0,0.139]
[1672614549937,0.52493528,16616.0,16615.0,0.4397]
[1672614551509,0.52493528,16616.0,16615.0,0.139]
[1672614551718,0.52493528,16616.0,16615.0,0.4397]
[1672614553831,0.52523528,16616.0,16615.0,0.4397]
[1672614554040,0.52523528,16616.0,16615.0,0.139]
[1672614554258,0.52523528,16616.0,16615.0,0.4397]
[1672614554672,0.52523528,16616.0,16615.0,0.139]
[1672614555095,0.52523528,16616.0,16615.0,0.4397]
[1672614555733,0.52523528,16616.0,16615.0,0.139]
[1672614555938,0.52523528,16616.0,16615.0,0.4397]
[1672614556680,0.52523528,16616.0,16615.0,0.139]
[1672614556885,0.52523528,16616.0,16615.0,0.4397]
[1672614559622,0.37483528,16616.0,16615.0,0.5893]
[1672614560559,0.37483528,16616.0,16615.0,1.28158454]
[1672614562250,0.37483528,16616.0,16615.0,1.28138494]
[1672614562453,0.37483528,16616.0,16615.0,1.1912004]
[1672614563720,0.37483528,16616.0,16615.0,1.1913004]
[1672614564247,0.37483528,16616.0,16615.0,1.0525]
[1672614564451,0.37483528,16616.0,16615.0,1.1915]
[1672614566033,0.37483528,16616.0,16615.0,1.28168454]
[1672614567499,0.37483528,16616.0,16615.0,1.1915]
[1672614567920,0.37483528,16616.0,16615.0,0.8908]
[1672614568129,0.37483528,16616.0,16615.0,1.1915]
[1672614568760,0.37483528,16616.0,16615.0,1.28168454]
[1672614574861,0.37483528,16616.0,16615.0,0.98098454]
[1672614575073,0.37483528,16616.0,16615.0,1.4168912]
[1672614575492,0.37483528,16616.0,16615.0,1.1161912]
[1672614575812,0.37483528,16616.0,16615.0,1.4168912]
[1672614576032,0.37483528,16616.0,16615.0,1.1161912]
[1672614576237,0.37483528,16616.0,16615.0,1.4168912]
[1672614576858,0.37483528,16616.0,16615.0,1.32670666]
[1672614577597,0.37483528,16616.0,16615.0,1.02600666]
[1672614577800,0.37483528,16616.0,16615.0,1.32670666]
[1672614578011,0.37483528,16616.0,16615.0,1.18770666]
[1672614578332,0.37483528,16616.0,16615.0,1.32670666]
[1672614582743,0.37483528,16616.0,16615.0,1.50692748]
[1672614583166,0.37483528,16616.0,16615.0,1.32670666]
[1672614588738,0.37483528,16616.0,16615.0,1.02600666]
[1672614588948,0.37483528,16616.0,16615.0,1.50692748]
[1672614590010,0.37483528,16616.0,16615.0,2.00492276]
[1672614590426,0.37483528,16616.0,16615.0,1.70422276]
[1672614590638,0.37483528,16616.0,16615.0,2.00492276]
[1672614590849,0.36697528,16616.0,16615.0,1.8697161]
[1672614597256,0.30626528,16616.0,16615.0,2.09497132]
[1672614597567,0.30626528,16616.0,16615.0,1.99039528]
[1672614597786,0.28255469,16616.0,16615.0,2.26157379]
[1672614598945,0.28255469,16616.0,16615.0,1.99039528]
[1672614599887,0.25210669,16616.0,16615.0,4.43370058]
[1672614600098,0.25210669,16616.0,16615.0,4.16252207]
[1672614600308,0.3081,16620.0,16617.0,0.6021]
[1672614600514,0.24918342,16620.0,16619.0,1.38309067]
[1672614600724,0.69874017,16621.0,16620.0,0.1493]
[1672614600941,0.69874017,16621.0,16620.0,1.38668384]
[1672614601363,0.1507,16624.0,16620.0,2.06448689]
[1672614601674,0.66933017,16622.0,16621.0,1.02705115]
[1672614601888,0.66933017,16622.0,16621.0,1.47844656]
[1672614602301,0.66933017,16622.0,16621.0,1.68987069]
[1672614602725,0.66933017,16622.0,16621.0,1.64473417]
[1672614602934,0.66933017,16622.0,16621.0,1.78373417]
[1672614603662,0.66933017,16622.0,16621.0,1.63303417]
[1672614604502,0.66933017,16622.0,16621.0,1.5432]
[1672614613872,0.66933017,16624.0,16621.0,1.5432]
[1672614614087,0.66933017,16624.0,16623.0,1.3539]
[1672614615349,1.00183017,16626.0,16623.0,1.3539]
[1672614615662,1.00183017,16626.0,16625.0,1.2032]
[1672614615984,0.66933017,16626.0,16625.0,1.3526]
[1672614616183,0.4511,16630.0,16625.0,1.3526]
[1672614616398,0.4511,16630.0,16629.0,0.4503]
[1672614616399,0.3012,16630.0,16629.0,0.4503]
[1672614616601,0.66933017,16630.0,16629.0,0.4503]
[1672614617349,0.66933017,16630.0,16629.0,1.0524]
[1672614617546,0.66933017,16630.0,16629.0,1.0535]
[1672614618082,0.66933017,16630.0,16629.0,0.9028]
[1672614618083,0.81893017,16630.0,16629.0,0.9028]
[1672614618293,1.12003017,16630.0,16627.0,0.3007]
[1672614618607,0.66933017,16628.0,16627.0,0.9028]
[1672614618810,0.81993017,16628.0,16627.0,0.9028]
[1672614620297,0.81993017,16628.0,16627.0,1.0428]
[1672614623651,0.82003017,16628.0,16627.0,1.0428]
[1672614633780,0.81993017,16628.0,16627.0,1.0428]
[1672614633988,0.66933017,16628.0,16627.0,1.1935]
[1672614636827,0.66933017,16628.0,16627.0,1.28333417]
[1672614638189,0.66933017,16628.0,16627.0,1.41830486]
[1672614638407,0.66933017,16628.0,16627.0,1.28333417]
[1672614638611,0.66933017,16628.0,16627.0,1.41830486]
[1672614638825,0.66933017,16628.0,16627.0,1.32847069]
[1672614640081,0.66933017,16628.0,16627.0,1.41809251]
[1672614640285,0.66933017,16628.0,16627.0,1.32847069]
[1672614640928,0.66933017,16628.0,16627.0,1.41808796]
[1672614642717,0.66933017,16628.0,16627.0,1.32847069]
[1672614642929,0.66933017,16628.0,16627.0,1.41810682]
[1672614643443,0.66933017,16628.0,16627.0,1.32847069]
[1672614644076,0.66933017,16628.0,16627.0,1.0428]
[1672614644077,0.81993017,16628.0,16627.0,1.0428]
[1672614647115,0.81993017,16628.0,16627.0,1.13243632]
[1672614648470,0.81993017,16628.0,16627.0,1.26740701]
[1672614649208,0.81993017,16628.0,16627.0,1.17777069]
[1672614649418,0.81993017,16628.0,16627.0,1.26751394]
[1672614650035,0.82003017,16628.0,16627.0,1.41821394]
[1672614650251,0.82003017,16628.0,16627.0,1.28324325]
[1672614650567,0.82003017,16628.0,16627.0,1.41821394]
[1672614650781,0.82003017,16628.0,16627.0,1.28324325]
[1672614652665,0.82003017,16628.0,16627.0,1.41821394]
[1672614653296,0.82003017,16628.0,16627.0,1.28324325]
[1672614653824,0.82003017,16628.0,16627.0,1.41821394]
[1672614653825,0.66933017,16628.0,16627.0,1.41821394]
[1672614654661,0.66933017,16628.0,16627.0,1.28324325]
[1672614656774,0.66933017,16628.0,16627.0,1.1935]
[1672614660646,0.81993017,16628.0,16627.0,0.4407]
[1672614661073,0.81993017,16628.0,16627.0,0.23379435]
[1672614661290,0.3014,16627.0,16625.0,0.3007]
[1672614661501,1.02003017,16626.0,16625.0,0.3007]
[1672614662337,1.02003017,16626.0,16625.0,0.3187]
[1672614662757,1.03303017,16626.0,16625.0,0.3187]
[1672614666326,0.83193017,16626.0,16625.0,0.3187]
[1672614666746,1.5045,16631.0,16625.0,1.16104325]
[1672614666747,0.65176817,16627.0,16625.0,1.16104325]
[1672614666960,0.65176817,16627.0,16626.0,0.7518]